Cogmind - Beta 14 @@@ ROGUE MODE // 2024.11.03 @ 14:18:22 Player: Thqwib Result: Destroyed by H-77 Assassin with Coil Gun Performance ------------- Evolutions (7) 3500 Regions Visited (17) 3400 Robots Destroyed (176) 880 Value Destroyed (7831) 7831 Prototype IDs (41) 820 Alien Tech Used (0) 0 Bonus (2728) 2728 TOTAL SCORE: 19159 Bonus ------- High Alert Combat Kills 1091 Follower Combat Kills 700 Entered DSFs 500 Aligned with FarCom 300 Acquired ECA 300 Friendly Fire -163 Cogmind --------- Core Integrity 0/1300 Matter 280/300 Energy 80/100 System Corruption 57% Temperature Cool (2) Movement Flying (37) Location -3/Research Parts ------- > --- POWER (3) -------- (None) > --- PROPULSION (5) --- Xenon Bombardment Thruster Xenon Bombardment Thruster > --- UTILITY (9) ------ Graphene Brace > --- WEAPON (4) ------- (None) > --- INVENTORY (5) ---- Advanced Recalibrator Gamma Rifle Peak State ------------ > --- POWER ------------ Reinforced Fission Core Particle Reactor Micro Antimatter Reactor > --- PROPULSION ------- Advanced Medium Treads Heavy Siege Treads Improved Heavy Siege Treads > --- UTILITY ---------- Advanced Heat Sink Advanced Coolant Injector Medium Storage Unit Encrypted Comm Array Advanced Target Analyzer Advanced Target Analyzer Backup Plating VII Advanced Force Field Experimental Field Recycling Unit > --- WEAPON ----------- Gamma Rifle Quantum Rifle Heavy Neutron Cannon Heavy Machine Gun > --- INVENTORY -------- Micro Antimatter Reactor Improved Medium Treads Armored Heavy Treads Improved Cryofiber Web Recoil Stabilizer Gamma Rifle Heavy Rocket Launcher Advanced Micro-nuke Launcher Powered Hammer [Rating: 149] Favorites ----------- Power Particle Reactor Engine Light Angular Momentum Engine Power Core Light Nuclear Core Reactor Particle Reactor Propulsion Advanced Medium Treads Treads Advanced Medium Treads Leg Carbon-fiber Leg Wheel Wheel Hover Unit Improved Antigrav System Flight Unit Impulse Thruster Array Utility Medium Storage Unit Device Advanced Heat Sink Storage Medium Storage Unit Processor Advanced Target Analyzer Hackware Hacking Suite Protection Light Regenerative Plating Weapon Cooled Pulse Rifle Energy Gun Cooled Pulse Rifle Energy Cannon Proton Cannon Ballistic Gun Gauss Rifle Ballistic Cannon Heavy Assault Cannon Launcher Heavy Rocket Launcher Impact Weapon Powered Hammer Build | -11 -10 -10 -9 -9 -9 -8 -8 -8 -7 -7 -6 -5 -5 -5 -4 -4 -3 ------- Run | Yrd Mat Min Mat Min Exi Min Mat Sto Fac DSF Fac Fac Upp Upp Fac Ext Res Slots Evolved 14 | . . . 2 . . . 2 . 2 . 2 2 . . 2 . 2 Power 2 | . . . . . . . . . . . 1 . . . . . 1 Propulsion 3 | . . . . . . . . . . . 1 1 . . 1 . . Utility 7 | . . . 1 . . . 1 . 2 . . 1 . . 1 . 1 Weapon 2 | . . . 1 . . . 1 . . . . . . . . . . Parts Attached 276 | . 9 7 8 3 . 5 34 23 5 1 28 12 11 1 7 20 102 Power 41 | . 2 2 1 . . 1 2 3 . . 4 4 1 . . 2 19 Engine 10 | . 2 2 1 . . . 1 2 . . 1 1 . . . . . Core 13 | . . . . . . 1 1 1 . . 3 3 . . . 1 3 Reactor 18 | . . . . . . . . . . . . . 1 . . 1 16 Propulsion 42 | . 3 1 3 2 . 1 6 2 . . 4 3 1 . 5 . 11 Treads 18 | . . . . . . . 5 2 . . 1 . . . 5 . 5 Leg 5 | . 1 . . . . . . . . . 3 1 . . . . . Wheel 13 | . 2 1 3 2 . 1 1 . . . . 2 1 . . . . Hover 3 | . . . . . . . . . . . . . . . . . 3 Flight 3 | . . . . . . . . . . . . . . . . . 3 Utility 85 | . 2 . 1 1 . 1 13 7 5 . 12 2 1 1 1 5 33 Device 53 | . . . 1 . . 1 5 5 4 . 7 2 . 1 1 2 24 Storage 5 | . . . . 1 . . 3 . . . . . . . . 1 . Processor 8 | . 1 . . . . . 1 . . . 2 . . . . 1 3 Hackware 2 | . 1 . . . . . 1 . . . . . . . . . . Protection 17 | . . . . . . . 3 2 1 . 3 . 1 . . 1 6 Artifact . | . . . . . . . . . . . . . . . . . . Weapon 108 | . 2 4 3 . . 2 13 11 . 1 8 3 8 . 1 13 39 Energy Gun 32 | . . . 1 . . 1 3 3 . . 2 . 1 . . 3 18 Energy Cannon 10 | . . . . . . . 2 2 . . 1 . 2 . . 1 2 Ballistic Gun 31 | . 1 2 1 . . . 5 2 . . 2 3 3 . . 4 8 Ballistic Cannon 5 | . . . 1 . . 1 . 1 . . 2 . . . . . . Launcher 12 | . 1 2 . . . . 1 . . . . . 1 . . 4 3 Special Weapon . | . . . . . . . . . . . . . . . . . . Impact Weapon 18 | . . . . . . . 2 3 . 1 1 . 1 . 1 1 8 Slashing Weapon . | . . . . . . . . . . . . . . . . . . Piercing Weapon . | . . . . . . . . . . . . . . . . . . Special Melee Weapon . | . . . . . . . . . . . . . . . . . . Unidentified Prototypes 16 | . . . 1 . . . 2 5 . . 1 1 . . . . 6 Corrupted Parts 2 | . . . . . . . . . . . . . . . . 1 1 System Corruption 2 | . . . . . . . . . . . . . . . . 1 1 Parts Lost 47 | . . . 4 . . 3 6 . . 1 4 . 5 . . . 24 Power 6 | . . . 1 . . . . . . . . . 1 . . . 4 Propulsion 10 | . . . 3 . . . 1 . . . 1 . 1 . . . 4 Utility 17 | . . . . . . 1 3 . . 1 2 . 1 . . . 9 Weapon 14 | . . . . . . 2 2 . . . 1 . 2 . . . 7 Highest Loss Streak 11 | . . . 3 . . 2 4 . . 1 3 . 5 . . . 11 To Critical Strikes . | . . . . . . . . . . . . . . . . . . Average Slot Usage (%) 91 | . 92 100 85 86 88 87 94 99 94 97 96 93 83 88 95 99 84 Engine 3 | . 14 14 9 11 11 1 . 2 7 7 5 4 5 5 5 . . Core 3 | . . . . . . 9 8 6 . . 6 5 1 . . 4 2 Reactor 3 | . . . . . . . . . . . . . 2 5 5 4 9 Treads 12 | . . . . . . . 15 17 15 15 18 . . . 19 26 12 Leg 1 | . 21 . . . . . . . . . 1 11 . . . . . Wheel 3 | . 6 28 21 20 22 22 1 . . . . 5 11 11 2 . . Device 15 | . . . 8 11 11 10 9 13 24 27 17 16 13 17 21 14 20 Storage 6 | . 14 14 11 11 11 11 9 9 7 7 6 5 5 5 5 5 3 Processor 5 | . 4 . . . . . 5 . . . 3 11 11 11 10 11 7 Hackware 3 | . 2 14 11 11 11 11 4 9 7 7 4 . . . . . . Protection 4 | . . . . . . . 6 4 . . 5 5 4 5 5 9 5 Energy Gun 6 | . 14 10 1 . . 9 5 9 7 7 5 5 6 5 5 5 6 Energy Cannon 2 | . . . . . . . 6 3 . . . . 3 5 5 4 1 Ballistic Gun 8 | . 13 11 11 11 11 . 9 11 7 7 11 11 7 11 9 8 5 Ballistic Cannon 2 | . . . 8 11 11 11 1 4 7 7 2 . . . . . . Impact Weapon 3 | . . . . . . . 8 7 7 7 5 4 1 . . . 2 Peak Build Rating 149 | . 9 9 21 21 22 24 38 39 43 45 66 78 75 76 100 107 149 Average Rating 73 | . 6 9 17 20 21 22 27 34 36 42 55 70 72 76 95 103 127 On Entrance 41 | 6 6 9 9 20 21 22 23 33 33 43 43 61 72 72 76 100 104 Naked Turns 31 | . . . . . . . . . . . . . . . . . 31 Heaviest Build 119 | 11 15 15 31 36 36 37 39 39 41 39 60 49 63 66 66 79 119 Greatest Support 180 | 20 20 26 26 26 26 26 40 40 40 40 60 60 56 56 150 150 180 Greatest Overweight (x) 3 | . . . 3 3 1 1 2 1 1 . 1 1 1 1 2 . 1 Average Overweight (x) . | . . . . 1 1 1 . . . . . . . 1 . . . Largest Inventory Capacity 25 | . 8 8 8 10 10 10 25 10 10 10 10 10 10 10 10 10 10 Average Capacity 9 | . 8 8 8 9 10 10 10 10 10 10 10 10 10 10 10 10 9 Most Carried 10 | . 5 3 6 7 7 7 10 10 9 10 10 10 10 6 6 10 10 Average Carried 7 | . 3 1 4 5 6 5 5 9 8 8 9 8 8 6 5 8 8 Final Capacity 10 | 8 8 8 8 10 10 10 10 10 10 10 10 10 10 10 10 10 5 Final Carried 10 | 6 2 2 5 6 7 5 10 10 8 10 10 9 7 6 6 9 2 Class Distribution -------------------- 32% | Scavenger-Skirmisher 28% | Scavenger-Gunner 13% | Skirmisher 6% | Mutant 6% | Gunner 4% | Tank 3% | Scavenger-Tank 3% | Scavenger-Mutant Dominant Class ---------------- Mutant | -10/Materials Scavenger-Mutant | -10/Mines Scavenger-Gunner | -9/Materials Gunner | -9/Mines Gunner | -9/Exiles Scavenger-Skirmisher | -8/Mines Skirmisher | -8/Materials Tank | -8/Storage Skirmisher | -7/Factory Skirmisher | -7/DSF Scavenger-Skirmisher | -6/Factory Scavenger-Skirmisher | -5/Factory Scavenger-Gunner | -5/Upper Caves Scavenger-Gunner | -5/Upper Caves Scavenger-Skirmisher | -4/Factory Scavenger-Skirmisher | -4/Extension Scavenger-Gunner | -3/Research Resources | -11 -10 -10 -9 -9 -9 -8 -8 -8 -7 -7 -6 -5 -5 -5 -4 -4 -3 ----------- Run | Yrd Mat Min Mat Min Exi Min Mat Sto Fac DSF Fac Fac Upp Upp Fac Ext Res Matter Collected 5764 | 200 137 112 317 105 . 178 413 549 . 60 505 168 338 . . 657 2025 Remotely 549 | . . . 317 95 . 77 . . . 60 . . . . . . . Salvage Created 8327 | . 408 166 169 121 . 255 964 650 . . 817 108 357 . . 995 3317 Parts 397 | . 17 15 5 9 . 12 59 30 . . 30 3 14 . . 28 175 Haulers Intercepted 11 | . 2 . 1 . . . 2 1 . . 1 . . . . 1 3 Recyclers Shooed 7 | . 1 2 . . . . . . . . 1 . . . . 2 1 Parts Field Recycled . | . . . . . . . . . . . . . . . . . . Retrieved Matter . | . . . . . . . . . . . . . . . . . . Parts Self-Destructed 12 | . . . . . . . . . . . . . 12 . . . . Prevented . | . . . . . . . . . . . . . . . . . . Kills | -11 -10 -10 -9 -9 -9 -8 -8 -8 -7 -7 -6 -5 -5 -5 -4 -4 -3 ------- Run | Yrd Mat Min Mat Min Exi Min Mat Sto Fac DSF Fac Fac Upp Upp Fac Ext Res Combat Hostiles Destroyed 147 | . 9 6 4 3 . 6 20 12 . . 11 6 8 . . 10 52 Melee 1 | . . . . . . . 1 . . . . . . . . . . Guns 81 | . 7 2 1 1 . 2 7 5 . . 8 6 5 . . 4 33 Cannons 27 | . . . 3 2 . 4 5 4 . . 2 . . . . 1 6 AOE 32 | . 2 4 . . . . 6 3 . . 1 . 3 . . 5 8 Classes Destroyed 19 | . 4 1 1 1 . . 6 . . . 1 1 . . . 1 3 Worker 5 | . . 1 1 . . . 2 . . . . . . . . . 1 Builder 5 | . . . . . . . 2 . . . . . . . . . 3 Tunneler 2 | . . . . 1 . . . . . . . . . . . . 1 Hauler 11 | . 2 . 1 . . . 2 1 . . 1 . . . . 1 3 Recycler 7 | . 1 1 1 1 . . . . . . 1 . . . . 2 . Mechanic 1 | . . . . . . . . . . . . . . . . . 1 Operator 1 | . . . . . . . 1 . . . . . . . . . . Watcher 8 | . . . . . . . 2 2 . . 1 . . . . 1 2 Swarmer 22 | . 3 6 . 3 . . . 1 . . . . 1 . . . 8 Grunt 61 | . 6 . 3 . . 5 12 7 . . 5 . 4 . . 6 13 Brawler 2 | . . . 1 . . 1 . . . . . . . . . . . Duelist 3 | . . . . . . . 1 . . . . . 2 . . . . Protector 1 | . . . . . . . . . . . . . . . . . 1 Sentry 15 | . . . . . . . 6 4 . . 2 . 1 . . 2 . Hunter 6 | . . . . . . . 1 . . . 2 . . . . . 3 Programmer 28 | . . . . . . . . . . . 2 . . . . 1 25 Behemoth 2 | . . . . . . . . . . . . . . . . 1 1 Assembled 6 | . . . . . . . . . . . . 6 . . . . . Fireman 1 | . . . . . . . . . . . . . . . . . 1 Best Kill Streak 11 | . 5 8 4 5 . 3 11 2 . . 4 6 7 . . 7 10 Combat Bots Only 10 | . 3 3 3 3 . 3 10 2 . . 4 6 7 . . 6 5 Max Kills in Single Turn 4 | . 1 2 1 1 . 1 3 1 . . 2 3 2 . . 4 3 Gunslinging 2 | . . . . . . . . . . . . 2 . . . . . Exploded 3 | . 1 2 . . . . 3 1 . . 1 . 1 . . 3 3 Melee 1 | . . . . . . . 1 . . . . . . . . . . Uniques/NPCs Destroyed . | . . . . . . . . . . . . . . . . . . Combat | -11 -10 -10 -9 -9 -9 -8 -8 -8 -7 -7 -6 -5 -5 -5 -4 -4 -3 -------- Run | Yrd Mat Min Mat Min Exi Min Mat Sto Fac DSF Fac Fac Upp Upp Fac Ext Res Hostile Shots Fired 1250 | . 62 13 40 16 . 31 191 48 . 8 126 41 47 . . 37 590 Missed 358 | . 18 1 10 4 . 8 64 16 . 1 32 16 12 . . 13 163 Damage Taken 16121 | . 508 99 438 107 . 383 1973 518 . 238 1301 456 925 . . 765 8410 Core 2507 | . 154 21 85 38 . 102 370 101 . 34 92 67 87 . . 48 1308 Absorbed by Shields 1832 | . . . . . . . 88 100 . . 60 . . . . 49 1535 Reduced by Siege Mode 1056 | . . . . . . . . . . . . . . . . . 1056 Ignored by Resistances 195 | . . . . . . . . . . . 195 . . . . . . Regen/Repaired (Parts) 783 | . . . . . . . . 252 . . 81 118 152 25 . 37 118 Core Remaining (%) 68 | 100 . 30 . . . 43 . 14 . 95 89 . . 84 . 95 . Volleys Fired 413 | . 41 8 19 11 . 14 41 53 . . 44 8 9 . . 24 141 Largest 4 | . 2 2 2 2 . 2 4 4 . . 4 4 4 . . 4 4 Hottest 309 | . 80 80 83 83 . 129 139 180 . . 119 101 234 . . 209 309 Shots Fired 1079 | . 79 16 38 17 . 25 93 109 . . 125 29 31 . . 88 429 Gun 848 | . 75 11 19 11 . 11 50 82 . . 108 29 25 . . 61 366 Cannon 184 | . . . 19 6 . 14 34 27 . . 17 . 3 . . 13 51 Launcher 47 | . 4 5 . . . . 9 . . . . . 3 . . 14 12 Special . | . . . . . . . . . . . . . . . . . . Kinetic 522 | . 35 5 38 17 . 18 43 49 . . 86 21 14 . . 39 157 Thermal 308 | . 40 6 . . . 7 41 13 . . 20 8 11 . . 22 140 Explosive 47 | . 4 5 . . . . 9 . . . . . 3 . . 14 12 Electromagnetic 202 | . . . . . . . . 47 . . 19 . 3 . . 13 120 Robot Hit Streak 20 | . 10 4 9 9 . 12 15 7 . . 17 6 16 . . 8 20 Robot Miss Streak 12 | . 2 2 2 2 . 4 3 12 . . 7 2 1 . . 2 3 Penetration Max 2 | . . . . . . . . . . . . 1 . . . 1 2 Secondary Targets 16 | . 1 . . . . . . . . . 2 4 1 . . 1 7 Max Gunslinging Chain 2 | . 1 . . . . . . . . . 1 2 1 . . 1 1 Shots Hit Robots 751 | . 59 8 27 11 . 14 74 45 . . 103 20 25 . . 48 317 Core Hits 412 | . 26 9 8 4 . 9 47 38 . . 65 11 20 . . 33 142 Critical Kills 9 | . . . . . . . . . . . . 2 1 . . . 6 Critical Parts Destroyed 20 | . . . . . . . 3 . . . . . . . . 1 16 Critical Strikes 65 | . 3 . 4 . . 3 7 1 . . . 2 1 . . 5 39 Burn 20 | . 3 . . . . . 1 1 . . . . . . . 3 12 Destroy 29 | . . . . . . . 2 . . . . 2 1 . . 2 22 Blast 10 | . . . 4 . . 3 3 . . . . . . . . . . Corrupt 5 | . . . . . . . . . . . . . . . . . 5 Smash 1 | . . . . . . . 1 . . . . . . . . . . Melee Attacks 144 | . . . . . . . 20 10 . 2 10 7 5 . 2 5 83 Impact 144 | . . . . . . . 20 10 . 2 10 7 5 . 2 5 83 Slashing . | . . . . . . . . . . . . . . . . . . Piercing . | . . . . . . . . . . . . . . . . . . Sneak Attacks 4 | . . . . . . . 4 . . . . . . . . . . Combat Hostiles 1 | . . . . . . . 1 . . . . . . . . . . Follow-up Attacks . | . . . . . . . . . . . . . . . . . . Damage Inflicted 23742 | . 903 316 908 280 . 530 2589 1061 . . 2242 427 919 . . 2217 11350 Guns 13175 | . 615 70 157 121 . 108 579 516 . . 1758 427 416 . . 1027 7381 Cannons 4130 | . . . 751 159 . 422 682 297 . . 281 . 58 . . 241 1239 Explosions 5994 | . 288 246 . . . . 924 248 . . 203 . 445 . . 926 2714 Melee 404 | . . . . . . . 404 . . . . . . . . . . Ramming 39 | . . . . . . . . . . . . . . . . 23 16 Kinetic 8762 | . 198 19 908 280 . 473 686 345 . . 1304 312 223 . . 695 3319 Thermal 6962 | . 417 51 . . . 57 575 359 . . 610 115 193 . . 361 4224 Explosive 5232 | . 288 246 . . . . 924 53 . . . . 445 . . 897 2379 Electromagnetic 2343 | . . . . . . . . 304 . . 328 . 58 . . 241 1412 Impact 404 | . . . . . . . 404 . . . . . . . . . . Slashing . | . . . . . . . . . . . . . . . . . . Piercing . | . . . . . . . . . . . . . . . . . . Highest Corruption 57 | . 2 2 3 3 3 3 . . . . 1 . . . . 1 57 Average Corruption 16 | . 2 2 3 3 3 3 . . . . 1 . . . . 1 23 Corruption Purged . | . . . . . . . . . . . . . . . . . . Corruption Blocked . | . . . . . . . . . . . . . . . . . . Effects 201 | . 3 2 1 9 2 6 . . . . . . . . . . 178 Message Errors 40 | . . . . 4 . 3 . . . . . . . . . . 33 Matter Fused 39 | . 1 1 1 . 1 . . . . . . . . . . . 35 Heat Flow Errors 21 | . 1 . . . . 1 . . . . . . . . . . 19 Energy Discharges 18 | . . . . 1 . . . . . . . . . . . . 17 Parts Rejected 5 | . . . . . . . . . . . . . . . . . 5 Parts Fused 2 | . . . . . . . . . . . . . . . . . 2 Data Loss (minor) 12 | . . . . 2 . 1 . . . . . . . . . . 9 Data Loss (major) 12 | . . 1 . 1 . 1 . . . . . . . . . . 9 Misfires 8 | . . . . 1 . . . . . . . . . . . . 7 Alerts 6 | . 1 . . . 1 . . . . . . . . . . . 4 Misdirections 11 | . . . . . . . . . . . . . . . . . 11 Weapon Failures 27 | . . . . . . . . . . . . . . . . . 27 Overload Shots 46 | . . . . . . . . . . . 6 . 2 . . 2 36 Effects 4 | . . . . . . . . . . . . . . . . . 4 Heat Surge 2 | . . . . . . . . . . . . . . . . . 2 Short Circuit 2 | . . . . . . . . . . . . . . . . . 2 Overflow Damage 670 | . 31 . 66 50 . 6 214 . . . 64 . 12 . . 10 217 Projectiles 207 | . . . 66 50 . 6 2 . . . . . . . . . 83 Explosions 254 | . 31 . . . . . 3 . . . 64 . 12 . . 10 134 Melee 209 | . . . . . . . 209 . . . . . . . . . . Knockbacks 20 | . . . . 1 . 3 . 8 . . 8 . . . . . . Impact . | . . . . . . . . . . . . . . . . . . Kinetic 20 | . . . . 1 . 3 . 8 . . 8 . . . . . . Secondary . | . . . . . . . . . . . . . . . . . . Self-Inflicted Damage 929 | . . 11 . . . . 111 118 . . 216 . 74 . . 17 382 Shots 15 | . . 1 . . . . 1 2 . . 3 . 2 . . 1 5 Rammed 5 | . . . . . . . 2 . . . . . . . . 1 2 Targets Rammed 5 | . . . . . . . 2 . . . . . . . . 1 2 Kicked . | . . . . . . . . . . . . . . . . . . Crushed . | . . . . . . . . . . . . . . . . . . Highest Temperature 452 | . 310 70 68 82 . 273 311 290 . . 247 . 2 . . 182 452 Average Temperature 93 | . 110 28 20 41 . 143 90 81 . . 62 . 2 . . 112 105 Received Heat Transfer 3652 | . 261 . 141 . . 207 931 241 . . 182 200 207 . . 464 818 Effects 7 | . 1 . . . . . . . . . . . . . . . 6 Shutdowns 2 | . . . . . . . . . . . . . . . . . 2 Energy Bleed 1 | . 1 . . . . . . . . . . . . . . . . Interference 1 | . . . . . . . . . . . . . . . . . 1 Matter Decay 1 | . . . . . . . . . . . . . . . . . 1 Short Circuit 1 | . . . . . . . . . . . . . . . . . 1 Damage (minor) 1 | . . . . . . . . . . . . . . . . . 1 Siege Activations 8 | . . . . . . . . . . . . . . . . . 8 Total Turns 395 | . . . . . . . . . . . . . . . . . 395 Longest Duration 110 | . . . . . . . . . . . . . . . . . 110 Robots Corrupted 6 | . . . . . . . 4 . . . . . . . . . 2 Combat Hostiles 3 | . . . . . . . 1 . . . . . . . . . 2 Parts Fried 17 | . . . . . . . 10 . . . 2 . . . . . 5 Impact Corruptions 8 | . . . . . . . 8 . . . . . . . . . . Robots Melted 2 | . . . . . . . . . . . . . . . . . 2 Combat Hostiles 2 | . . . . . . . . . . . . . . . . . 2 Parts Melted 31 | . 2 . . . . . 2 . . . . . 1 . . 2 24 Heat Transferred 10787 | . 1443 148 . . . 111 1147 720 . . 857 222 346 . . 816 4977 Parts Sabotaged . | . . . . . . . . . . . . . . . . . . Parts Stolen . | . . . . . . . . . . . . . . . . . . Parts Stripped . | . . . . . . . . . . . . . . . . . . Power Chain Reactions 8 | . . . . . . . . 3 . . 2 . . . . . 3 Alert | -11 -10 -10 -9 -9 -9 -8 -8 -8 -7 -7 -6 -5 -5 -5 -4 -4 -3 ------- Run | Yrd Mat Min Mat Min Exi Min Mat Sto Fac DSF Fac Fac Upp Upp Fac Ext Res Peak Influence 1226 | . 319 214 214 178 . 163 506 561 238 167 269 123 . . 5 478 1226 Initial 238 | . . 21 83 79 . . 63 113 238 166 81 95 . . . . 194 Average 252 | . 98 97 124 161 . 110 270 292 238 163 100 88 . . 4 76 453 Maximum Alert Level 4 | . 1 1 1 . . . 2 2 1 . 1 . . . . 2 4 Low Security (%) 52 | . 80 74 94 100 . 100 31 36 . 100 93 100 . . 100 86 15 Level 1 24 | . 19 25 5 . . . 51 30 100 . 6 . . . . 11 30 Level 2 17 | . . . . . . . 16 32 . . . . . . . 1 37 Level 3 5 | . . . . . . . . . . . . . . . . . 15 Level 4 . | . . . . . . . . . . . . . . . . . 1 Level 5 . | . . . . . . . . . . . . . . . . . . High Security . | . . . . . . . . . . . . . . . . . . Max Security . | . . . . . . . . . . . . . . . . . . Sterilizations 1 | . . . . . . . . . . 1 . . . . . . . Squads Dispatched 44 | . 2 . . . . . 6 8 1 . 6 . . . . 2 19 Investigation 9 | . . . . . . . 3 2 . . 2 . . . . 1 1 Extermination 13 | . . . . . . . . . 1 . 2 . . . . . 10 Reinforcement 16 | . 2 . . . . . 3 2 . . 2 . . . . 1 6 Assault 2 | . . . . . . . . . . . . . . . . . 2 Garrison 4 | . . . . . . . . 4 . . . . . . . . . Intercept . | . . . . . . . . . . . . . . . . . . Searches Triggered . | . . . . . . . . . . . . . . . . . . Construction Impeded 4 | . . . . . . . 1 1 . . . . . . . . 2 Haulers Reinforced 4 | . . . . . . . . . . . 1 . . . . . 3 Active Scanning Responses . | . . . . . . . . . . . . . . . . . . Cargo Convoy Interrupts 1 | . . . . . . . . . . . . . . . . . 1 Stealth | -11 -10 -10 -9 -9 -9 -8 -8 -8 -7 -7 -6 -5 -5 -5 -4 -4 -3 --------- Run | Yrd Mat Min Mat Min Exi Min Mat Sto Fac DSF Fac Fac Upp Upp Fac Ext Res Distress Signals 12 | . 1 . 1 . . . 3 . . . 1 . . . . 1 5 Communications Jammed . | . . . . . . . . . . . . . . . . . . Distress Signals . | . . . . . . . . . . . . . . . . . . Times Spotted 242 | . 20 6 9 3 . 6 31 18 . 3 13 13 10 . . 23 87 Peak Tracking Total 10 | . 4 3 4 4 . 3 10 5 1 2 4 8 7 . . 7 9 Tactical Retreats 33 | . 4 . . 1 . 1 4 2 . . . 1 2 . . 2 16 Traps | -11 -10 -10 -9 -9 -9 -8 -8 -8 -7 -7 -6 -5 -5 -5 -4 -4 -3 ------- Run | Yrd Mat Min Mat Min Exi Min Mat Sto Fac DSF Fac Fac Upp Upp Fac Ext Res Traps Triggered 6 | . 1 . . . . . 3 1 . . . 1 . . . . . Indirectly . | . . . . . . . . . . . . . . . . . . Trap Hack Attempts . | . . . . . . . . . . . . . . . . . . Triggered . | . . . . . . . . . . . . . . . . . . Disarmed . | . . . . . . . . . . . . . . . . . . Reprogrammed 4 | . 4 . . . . . . . . . . . . . . . . Reused 5 | . . . . . . . 1 1 . . 3 . . . . . . Traps Reconfigurated 14 | . . . . . . . 2 2 . 1 9 . . . . . . Traps Extracted . | . . . . . . . . . . . . . . . . . . Installed . | . . . . . . . . . . . . . . . . . . Triggered 6 | . . . . . . . 1 1 . . 3 . . . . . 1 Machines | -11 -10 -10 -9 -9 -9 -8 -8 -8 -7 -7 -6 -5 -5 -5 -4 -4 -3 ---------- Run | Yrd Mat Min Mat Min Exi Min Mat Sto Fac DSF Fac Fac Upp Upp Fac Ext Res Machines Disabled 18 | . 1 1 1 . . . 1 5 . . 3 . . . . 3 3 Max in Single Turn 3 | . 1 1 1 . . . 1 2 . . 3 . . . . 1 1 Energy Cycler 1 | . . . . . . . . . . . . . . . . 1 . Machines Repaired . | . . . . . . . . . . . . . . . . . . Machines Dismantled . | . . . . . . . . . . . . . . . . . . Machines Sabotaged . | . . . . . . . . . . . . . . . . . . Overloaded Fab Kills . | . . . . . . . . . . . . . . . . . . Hacking | -11 -10 -10 -9 -9 -9 -8 -8 -8 -7 -7 -6 -5 -5 -5 -4 -4 -3 --------- Run | Yrd Mat Min Mat Min Exi Min Mat Sto Fac DSF Fac Fac Upp Upp Fac Ext Res Machines Accessed 45 | . 6 1 1 . 1 . 9 5 3 . 7 1 1 . 1 2 7 Terminals 33 | . 6 1 1 . . . 7 3 1 . 4 1 . . 1 2 6 Fabricators 2 | . . . . . . . . . 1 . 1 . . . . . . Repair Stations 2 | . . . . . . . . 2 . . . . . . . . . Recycling Units 2 | . . . . . . . 1 . . . 1 . . . . . . Scanalyzers 4 | . . . . . . . 1 . 1 . 1 . . . . . 1 Garrison Access . | . . . . . . . . . . . . . . . . . . Total Hacks 115 | . 21 3 4 . 1 . 27 17 4 . 12 3 1 . 2 5 15 Successful 65 | . 12 1 2 . 1 . 18 12 4 . 7 2 1 . 1 1 3 Failed 50 | . 9 2 2 . . . 9 5 . . 5 1 . . 1 4 12 Catastrophic 9 | . . . . . . . . . . . 1 1 . . . 1 6 Database Lockouts . | . . . . . . . . . . . . . . . . . . Manual 67 | . 19 3 4 . 1 . 16 3 . . 4 1 . . 2 3 11 Terminals 89 | . 21 3 4 . . . 20 10 1 . 7 3 . . 2 5 13 Fabricators 3 | . . . . . . . . . 1 . 2 . . . . . . Repair Stations 7 | . . . . . . . . 7 . . . . . . . . . Recycling Units 4 | . . . . . . . 3 . . . 1 . . . . . . Scanalyzers 10 | . . . . . . . 4 . 2 . 2 . . . . . 2 Garrison Access . | . . . . . . . . . . . . . . . . . . Terminal Hacks 26 | . 7 . 1 . 1 . 5 5 1 . 3 1 1 . . . 1 Record 1 | . . . . . . . . 1 . . . . . . . . . Robot Analysis 1 | . 1 . . . . . . . . . . . . . . . . Prototype ID Bank 1 | . 1 . . . . . . . . . . . . . . . . Open Door 2 | . . . . . . . . 1 . . . . 1 . . . . Open DSF 4 | . . . . . . . . . 1 . 2 . . . . . 1 Branch Access Points 2 | . 1 . . . . . 1 . . . . . . . . . . Repair Station Index 1 | . . . . . . . 1 . . . . . . . . . . Alert Level 4 | . 1 . . . . . 1 1 . . . 1 . . . . . Unreport Threat 2 | . 1 . . . . . 1 . . . . . . . . . . Locate Traps 3 | . 1 . . . . . 1 . . . 1 . . . . . . Reprogram Traps 1 | . 1 . . . . . . . . . . . . . . . . Registered Components 1 | . . . . . . . . 1 . . . . . . . . . Zone Layout 2 | . . . 1 . . . . 1 . . . . . . . . . Derelict Proto ID Bank 1 | . . . . . 1 . . . . . . . . . . . . Fabricator Hacks 3 | . . . . . . . . . 1 . 2 . . . . . . Network Status 1 | . . . . . . . . . 1 . . . . . . . . Load Schematic 1 | . . . . . . . . . . . 1 . . . . . . Build 1 | . . . . . . . . . . . 1 . . . . . . Repair Station Hacks 6 | . . . . . . . . 6 . . . . . . . . . Scan Component 3 | . . . . . . . . 3 . . . . . . . . . Repair 3 | . . . . . . . . 3 . . . . . . . . . Recycling Unit Hacks 3 | . . . . . . . 3 . . . . . . . . . . Process 1 | . . . . . . . 1 . . . . . . . . . . Report Inventory 1 | . . . . . . . 1 . . . . . . . . . . Retrieve Matter 1 | . . . . . . . 1 . . . . . . . . . . Scanalyzer 8 | . . . . . . . 4 . 2 . 1 . . . . . 1 Insert Component 5 | . . . . . . . 2 . 1 . 1 . . . . . 1 Analyze 3 | . . . . . . . 2 . 1 . . . . . . . . Garrison Access Hacks . | . . . . . . . . . . . . . . . . . . Unauthorized Hacks 19 | . 5 1 1 . . . 6 1 . . 1 1 . . 1 1 1 Terminals 19 | . 5 1 1 . . . 6 1 . . 1 1 . . 1 1 1 Botnet 18 | . 5 1 1 . . . 5 1 . . 1 1 . . 1 1 1 Disrupt 1 | . . . . . . . 1 . . . . . . . . . . Fabricators . | . . . . . . . . . . . . . . . . . . Repair Stations . | . . . . . . . . . . . . . . . . . . Recycling Units . | . . . . . . . . . . . . . . . . . . Scanalyzers . | . . . . . . . . . . . . . . . . . . Garrison Access . | . . . . . . . . . . . . . . . . . . Data Cores Recovered . | . . . . . . . . . . . . . . . . . . Used . | . . . . . . . . . . . . . . . . . . Hacking Detections 35 | . 6 1 1 . . . 7 2 2 . 5 1 . . 1 2 7 Full Trace Events 8 | . . . . . . . 2 2 . . 2 . . . . 1 1 Feedback Events . | . . . . . . . . . . . . . . . . . . Feedback Blocked . | . . . . . . . . . . . . . . . . . . Robot Schematics Acquired . | . . . . . . . . . . . . . . . . . . Robots Built . | . . . . . . . . . . . . . . . . . . Authchips . | . . . . . . . . . . . . . . . . . . Time . | . . . . . . . . . . . . . . . . . . Total Robot Build Rating . | . . . . . . . . . . . . . . . . . . Part Schematics Acquired 3 | . . . . . . . 2 . 1 . . . . . . . . Parts Built 2 | . . . . . . . . . . . 2 . . . . . . Authchips . | . . . . . . . . . . . . . . . . . . Time 73 | . . . . . . . . . . . 73 . . . . . . Total Part Build Rating 6 | . . . . . . . . . . . 6 . . . . . . Parts Repaired 2 | . . . . . . . . 2 . . . . . . . . . Time 114 | . . . . . . . . 114 . . . . . . . . . Parts Recycled . | . . . . . . . . . . . . . . . . . . Recycled Matter 48 | . . . . . . . 48 . . . . . . . . . . Retrieved Matter 106 | . . . . . . . 106 . . . . . . . . . . Retrieved Components . | . . . . . . . . . . . . . . . . . . Parts Scanalyzed 5 | . . . . . . . 2 . 1 . 1 . . . . . 1 Part Schematics Acquired 3 | . . . . . . . 2 . 1 . . . . . . . . Parts Damaged 2 | . . . . . . . 1 . . . 1 . . . . . . Bothacking | -11 -10 -10 -9 -9 -9 -8 -8 -8 -7 -7 -6 -5 -5 -5 -4 -4 -3 ------------ Run | Yrd Mat Min Mat Min Exi Min Mat Sto Fac DSF Fac Fac Upp Upp Fac Ext Res Used RIF Installer . | . . . . . . . . . . . . . . . . . . Robots Hacked . | . . . . . . . . . . . . . . . . . . Non-combat . | . . . . . . . . . . . . . . . . . . Combat . | . . . . . . . . . . . . . . . . . . Robot Hacks Applied . | . . . . . . . . . . . . . . . . . . Relay Couplers Released . | . . . . . . . . . . . . . . . . . . Fabnet Peak Effective % . | . . . . . . . . . . . . . . . . . . Robots Rewired 5 | . . . . . . . . . . . . . 2 . . 3 . Allies Hacked . | . . . . . . . . . . . . . . . . . . Hacks Repelled . | . . . . . . . . . . . . . . . . . . Allies | -11 -10 -10 -9 -9 -9 -8 -8 -8 -7 -7 -6 -5 -5 -5 -4 -4 -3 -------- Run | Yrd Mat Min Mat Min Exi Min Mat Sto Fac DSF Fac Fac Upp Upp Fac Ext Res Total Allies 22 | . . . . 2 . . . 10 . . . . 2 . . 8 . Largest Group 10 | . . . . 2 2 . . 10 . . . . 2 . . 6 . Highest-Rated Group 394 | . . . . 43 43 . . 173 . . . . 60 . . 394 . Highest-Rated Ally 159 | . . . . 31 31 . . 29 . . . . 30 . . 159 . Warlord Squad Rendezvous 3 | . . . . . . . . . . . . . . . . . 3 Pyro 1 | . . . . . . . . . . . . . . . . . 1 Chimera 1 | . . . . . . . . . . . . . . . . . 1 Ghost 1 | . . . . . . . . . . . . . . . . . 1 Total Orders 1 | . . . . . . . . 1 . . . . . . . . . GUARD 1 | . . . . . . . . 1 . . . . . . . . . Ally Attacks 141 | . . . . . . . . 61 . . . . 11 . . 69 . Total Damage 2609 | . . . . . . . . 750 . . . . 141 . . 1718 . Kills 17 | . . . . . . . . 9 . . . . 1 . . 7 . Allies Corrupted 1 | . . . . . . . . . . . . . . . . 1 . Allies Melted . | . . . . . . . . . . . . . . . . . . Intel | -11 -10 -10 -9 -9 -9 -8 -8 -8 -7 -7 -6 -5 -5 -5 -4 -4 -3 ------- Run | Yrd Mat Min Mat Min Exi Min Mat Sto Fac DSF Fac Fac Upp Upp Fac Ext Res Robot Analysis Total 1 | . 1 . . . . . . . . . . . . . . . . Derelict Logs Recovered 3 | . . 1 . 1 . . . . . . . . 1 . . . . Drone Launches . | . . . . . . . . . . . . . . . . . . Drone Recoveries . | . . . . . . . . . . . . . . . . . . Exploration | -11 -10 -10 -9 -9 -9 -8 -8 -8 -7 -7 -6 -5 -5 -5 -4 -4 -3 ------------- Run | Yrd Mat Min Mat Min Exi Min Mat Sto Fac DSF Fac Fac Upp Upp Fac Ext Res Turns Passed 12178 | . 456 131 266 417 223 395 1255 1062 314 61 1188 443 497 76 458 1235 3701 Spaces Moved 5760 | 1 286 114 179 355 212 265 424 402 159 31 492 301 384 66 178 397 1514 Core 171 | . . . . . . . . . . . . . . . . . 171 Treads 3057 | . . . . . . . 348 402 159 31 456 . . . 92 397 1172 Legs 363 | 1 188 . . . . . . . . . 36 138 . . . . . Wheels 1998 | . 98 114 179 355 212 265 76 . . . . 163 384 66 86 . . Hover 118 | . . . . . . . . . . . . . . . . . 118 Flight 53 | . . . . . . . . . . . . . . . . . 53 Fastest Speed 37 | 120 80 80 90 95 105 105 105 165 165 165 120 100 100 115 115 145 37 Average Speed 133 | 120 106 82 92 106 105 105 159 168 180 165 160 109 108 115 130 145 140 Slowest Speed 250 | 120 120 90 125 125 105 105 250 250 245 165 190 120 115 115 145 145 168 Overloaded Moves . | . . . . . . . . . . . . . . . . . . Propulsion Burnouts . | . . . . . . . . . . . . . . . . . . Robots Hopped . | . . . . . . . . . . . . . . . . . . Cave-ins Triggered 1 | . . . . . . . . . . . . . . . . . 1 Exploration Rate (%) 34 | 2 54 29 17 66 62 57 45 62 4 43 15 11 60 12 5 45 33 Regions Visited 17 Branch Regions 8 Pre-discovered Areas 2 | . . 1 . . . . . . . . . . 1 . . . . Known Exits Taken 4 | . 1 . . . . . 1 1 1 . . . . . . . . Unknown Exits Taken 12 | 1 . 1 1 1 1 1 . . . . 1 1 1 1 1 1 . Scrap Searched 2 | . . . . 1 . . . . . . . . 1 . . . . Spaces Dug 106 | . . . . . . . 7 6 . 1 9 5 3 . 1 5 69 Terrain Destroyed 510 | . 11 29 8 5 . 8 51 21 . 1 32 5 35 . 1 93 210 Melee 103 | . . . . . . . 7 6 . 1 9 5 3 . 1 5 66 Projectile 50 | . . . 8 5 . 8 7 . . . . . 1 . . 2 19 AOE 357 | . 11 29 . . . . 37 15 . . 23 . 31 . . 86 125 Terrain Rammed . | . . . . . . . . . . . . . . . . . . Walls Destroyed . | . . . . . . . . . . . . . . . . . . Machines Disabled . | . . . . . . . . . . . . . . . . . . Actions | -11 -10 -10 -9 -9 -9 -8 -8 -8 -7 -7 -6 -5 -5 -5 -4 -4 -3 --------- Run | Yrd Mat Min Mat Min Exi Min Mat Sto Fac DSF Fac Fac Upp Upp Fac Ext Res Total 9157 | . 367 134 231 375 212 348 884 683 187 38 798 388 432 66 398 987 2629 Wait 2327 | . 21 . 19 4 . 62 331 183 21 . 197 49 6 . 209 510 715 Move 5743 | . 285 113 178 354 211 264 423 401 158 30 491 300 383 65 177 396 1514 Hop . | . . . . . . . . . . . . . . . . . . Pick Up 58 | . 1 1 4 1 1 1 10 . . 2 9 1 2 . 1 4 20 Fast Attach 113 | . 3 1 4 1 . 3 19 12 1 1 10 6 2 . 5 2 43 Attach 71 | . 3 . 3 . . 1 6 2 4 . 11 4 4 1 1 3 28 Detach 31 | . 1 . 1 . . . 5 2 2 . 4 2 1 . . 3 10 Swap 92 | . 3 6 1 2 . 1 9 9 . . 7 2 5 . 1 15 31 Drop 123 | . 9 5 2 2 . 2 18 9 1 1 15 9 . . 2 6 42 Fire 413 | . 41 8 19 11 . 14 41 53 . . 44 8 9 . . 24 141 Melee 144 | . . . . . . . 20 10 . 2 10 7 5 . 2 5 83 Ram 2 | . . . . . . . . . . . . . . . . . 2 Kick . | . . . . . . . . . . . . . . . . . . Crush 3 | . . . . . . . 2 . . . . . . . . 1 . Escape Stasis 2 | . . . . . . . . . . 2 . . . . . . . Rewire 35 | . . . . . . . . 2 . . . . 15 . . 18 . Trap . | . . . . . . . . . . . . . . . . . . Miscellaneous . | . . . . . . . . . . . . . . . . . . Route ------- -11/Scrapyard -10/Materials (discovered 3 exits: *Mat / *Min x2) -10/Mines -9/Materials -9/Mines (discovered 2 exits: *Mat / *Exi) -9/Exiles -8/Mines -8/Materials (discovered 2 exits: Fac / *Sto) -8/Storage -7/Factory -7/DSF -6/Factory -5/Factory -5/Upper Caves -5/Upper Caves -4/Factory -4/Extension -3/Research History --------- Turn | Location | Event 1 | -11/Scrapyard | Discovered new exit (range 0) 1 | -11/Scrapyard | Entered Materials 307 | -10/Materials | Build established: Mutant 331 | -10/Materials | Core integrity fell below 50% 369 | -10/Materials | Identified exit to Mines 379 | -10/Materials | Discovered new exit (range 4) 457 | -10/Materials | Entered Mines 478 | -10/Mines | Learned Materials emergency access door positions 483 | -10/Mines | Learned location of Storage (-8) 554 | -10/Mines | Discovered new exit (range 14) 588 | -10/Mines | Entered Materials 588 | -9/Materials | Evolved 2 slots: Utility x1, Weapon x1 702 | -9/Materials | Discovered new exit (range 7) 810 | -9/Materials | Lost 3 parts (1p2n) 854 | -9/Materials | Entered Mines 1025 | -9/Mines | Discovered new exit (range 15) 1073 | -9/Mines | Build established: Gunner 1101 | -9/Mines | Learned 4 Materials zone layouts 1262 | -9/Mines | Deemed a non-threat by the Exiles lab entrance 1262 | -9/Mines | Discovered new exit (range 5) 1271 | -9/Mines | Entered Exiles 1271 | -9/Exiles | Accompanied by 2 allies 1296 | -9/Exiles | Met 8R-AWN 1301 | -9/Exiles | Led the pair of lost Derelicts to a safe place 1315 | -9/Exiles | Met EX-HEX 1345 | -9/Exiles | Met EX-BIN 1358 | -9/Exiles | Aligned with FarCom system 1359 | -9/Exiles | Given EX-Vault access code 1388 | -9/Exiles | Opened EX-Vault 1393 | -9/Exiles | Found Trap Reconfigurator 1416 | -9/Exiles | Warned to stay clear of 0b10 Research branches 1445 | -9/Exiles | Met EX-DEC 1484 | -9/Exiles | Discovered new exit (range 10) 1494 | -9/Exiles | Left Exiles lab with Trap Reconfigurator 1494 | -9/Exiles | Entered Mines 1525 | -8/Mines | Core integrity fell below 50% 1841 | -8/Mines | Build established: Scavenger-Skirmisher 1877 | -8/Mines | Discovered new exit (range 10) 1889 | -8/Mines | Entered Materials 1889 | -8/Materials | Evolved 2 slots: Utility x1, Weapon x1 1890 | -8/Materials | Identified exit to Storage 1890 | -8/Materials | Identified exit to Factory 2082 | -8/Materials | Core integrity fell below 50% 2117 | -8/Materials | Destroyed 10 combat bots 2125 | -8/Materials | Lost 4 parts (2u2w) 2610 | -8/Materials | Build established: Skirmisher 3144 | -8/Materials | Entered Storage 3641 | -8/Storage | Build established: Tank 3642 | -8/Storage | Found Prototype Protection 3642 | -8/Storage | Identified Lgt. Regenerative Plating 3684 | -8/Storage | Garrison activated, responded to threat 3787 | -8/Storage | Assisted by bots powering up and referring to "LRC-V3" 3793 | -8/Storage | Core integrity fell below 20% 3848 | -8/Storage | Garrison activated, responded to threat 3873 | -8/Storage | Repaired Arm. Treads 3928 | -8/Storage | Lost 6 allies 4024 | -8/Storage | Discovered exit to Factory (range 15) 4077 | -8/Storage | Lost 3 allies 4148 | -8/Storage | Repaired Hardlight Generator 4206 | -8/Storage | Entered Factory 4206 | -7/Factory | Evolved 2 slots: Utility x2 4227 | -7/Factory | Build established: Skirmisher 4517 | -7/Factory | Identified exit to DSF 4520 | -7/Factory | Entered DSF 4520 | -7/DSF | Encountered a pitched battle between 0b10 and Warlord forces 4520 | -7/DSF | Spotted Executioner 4550 | -7/DSF | Sterilization system engaged 4552 | -7/DSF | Discovered new exit (range 15) 4570 | -7/DSF | Ambient heat levels rising (+10) 4581 | -7/DSF | Entered Factory 4581 | -6/Factory | Evolved 2 slots: Power x1, Propulsion x1 4595 | -6/Factory | Lost 10 allies 4887 | -6/Factory | Build established: Scavenger-Skirmisher 4941 | -6/Factory | Lost 3 parts (2u1w) 5710 | -6/Factory | Discovered new exit (range 14) 5732 | -6/Factory | Fabricated Arm. Treads? 5769 | -6/Factory | Entered another Factory area 5769 | -5/Factory | Evolved 2 slots: Propulsion x1, Utility x1 6160 | -5/Factory | Assembled infested ambush trap array 6194 | -5/Factory | Discovered new exit (range 19) 6212 | -5/Factory | Entered Upper Caves 6218 | -5/Upper Caves | Met a Warlord Commander 6219 | -5/Upper Caves | Learned location of Warlord (-4) 6220 | -5/Upper Caves | Warlord Commander delivered Encrypted Comm Array 6220 | -5/Upper Caves | Found Encrypted Comm Array 6390 | -5/Upper Caves | Attracted the attention of an 0b10 outpost 6445 | -5/Upper Caves | Destroyed 7 combat bots 6453 | -5/Upper Caves | Lost 5 parts (1p1n1u2w) 6511 | -5/Upper Caves | Build established: Scavenger-Gunner 6593 | -5/Upper Caves | Discovered new exit (range 8) 6667 | -5/Upper Caves | Learned 4 Factory zone layouts 6709 | -5/Upper Caves | Entered another Upper Caves area 6729 | -5/Upper Caves | Discovered new exit (range 12) 6785 | -5/Upper Caves | Entered Factory 6785 | -4/Factory | Evolved 2 slots: Propulsion x1, Utility x1 6797 | -4/Factory | Discovered new exit (range 17) 7075 | -4/Factory | Build established: Scavenger-Skirmisher 7243 | -4/Factory | Entered Extension 8030 | -4/Extension | Energy Cycler disabled 8030 | -4/Extension | Rescued a captive Derelict 8030 | -4/Extension | Rescued a captive Derelict 8030 | -4/Extension | Rescued a captive Derelict 8030 | -4/Extension | Rescued a captive Derelict 8031 | -4/Extension | Rescued a captive Derelict 8032 | -4/Extension | Rescued a captive Derelict 8033 | -4/Extension | Rescued a captive Derelict 8034 | -4/Extension | Rescued a captive Derelict 8035 | -4/Extension | Rescued a captive Derelict 8035 | -4/Extension | Rescued a captive Derelict 8037 | -4/Extension | Rescued a captive Derelict 8039 | -4/Extension | Rescued A7 8039 | -4/Extension | Rescued a captive Derelict 8251 | -4/Extension | Spotted B-86 Titan 8355 | -4/Extension | Lost 5 allies 8397 | -4/Extension | Build established: Scavenger-Gunner 8403 | -4/Extension | Spotted B-86 Titan 8432 | -4/Extension | Destroyed B-86 Titan 8440 | -4/Extension | Discovered new exit (range 19) 8478 | -4/Extension | Entered Research 8478 | -3/Research | Evolved 2 slots: Power x1, Utility x1 8788 | -3/Research | Joined by Warlord Ghost squad 9007 | -3/Research | Cargo convoy interrupted 9043 | -3/Research | Found Prototype Launcher 9043 | -3/Research | Identified Adv. Micro-nuke Launcher 9159 | -3/Research | Crushed by falling debris 9159 | -3/Research | System corruption reached 10% 9459 | -3/Research | Build established: Scavenger-Skirmisher 9897 | -3/Research | Joined by Warlord Pyro squad 9921 | -3/Research | Build established: Scavenger-Tank 9961 | -3/Research | P-80 Master assimilated allied 5W-VO0(i) 9965 | -3/Research | P-80 Master assimilated allied 7A-NRT(i) 9981 | -3/Research | Spotted B-86 Titan 9997 | -3/Research | Destroyed B-86 Titan 10273 | -3/Research | Build established: Scavenger-Gunner 10567 | -3/Research | Joined by Warlord Chimera squad 11474 | -3/Research | System corruption reached 30% 11478 | -3/Research | First assault squad dispatched 11845 | -3/Research | Released all parts (13) 11876 | -3/Research | Lost 11 parts (1p2n5u3w) 12090 | -3/Research | Released all parts (8) 12099 | -3/Research | Core integrity fell below 50% 12118 | -3/Research | Core integrity fell below 20% 12145 | -3/Research | Lost 6 parts (1p2n1u2w) 12179 | -3/Research | Destroyed by H-77 Assassin with Coil Gun Last Messages --------------- 12115_ K-01 Serf collects debris. 12118_ Slug penetrates Wall. 12118_ Penetrated by Slug. 12119_ K-01 Serf collects debris. 12120_ System corrupted: Heat flow error (+225). 12120_ K-01 Serf destroyed. 12121_ Acquired 30 matter. 12122_ Acquired 70 matter. 12129_ K-01 Serf cleans the Quantum Separator. 12137_ System corrupted: Heat flow error (+293). 12153_ System corrupted: Graphene Brace rejected. 12153_ Acquired Graphene Brace. 12167_ Acquired 10 matter. 12169_ System corrupted: Component data lost. 12171_ Acquired Gamma Rifle. 12172_ Acquired Xenon Bombardment Thruster. 12175_ Slug penetrates Wall. 12175_ Penetrated by Slug. 12176_ Acquired Corrupted Xenon Bombardment Thruster. 12176_ Integrated Corrupted Xenon Bombardment Thruster (+1). Map ----- +----------------------------------------------------+ | ?????????????????????????????##"%""###"##### #? | | ?????????????????????????????# "[!"######### #? | | ?????????????????????????????? [%! + # +? | | ???????????????????????????????"!"## #?? #? | | ???????????????????????????????" "??""" #?? #? | | ???????????????????????????????# #???"" #?????? | | ???????????????????????????????# #??""" #?????? | | ???????????????????????????????# #?#""" # ?? | | ???????????????????????????????# #?#""" # ? | | ?????????????????????????#######+### # #? | | ?????????????????????????# ! ## # #? | | ?????????????????????????# * = ##""" # #? | | ?????????????????????????# [ " ##""" # #? | | ?????????????????????????# "*" ##""" # #? | | ?????????????????????????# "R = ##""" + #? | | ?????????????????????????# """%= ##""" # #? | | ?????????????????????????# " "! ## !# #? | | ?????????????????????????# % | ## # #? | | ?????????????????????????# = != ## # #? | | ?????????????????????????#####+########+#### #? | | ??????????????????????????#== % !%[ #? | | ???????????##########?????# |% % % = #? | | ???????????# ####### = #? | | ???????????# # [ !!! #? | | ???????????# # ! !###+##### | | ???????????# """ # @ * ! # """ | | ???????????# """" # # """ | | ???????????# """" #= # """ | | ???????????# """ !; = # | | ???????????# [=p#= h + | | ???????????# [= %# % u#### # ! | | ???????????########+# #??#### # | | ??????????????????# ############ #?????# # | | ??????????????????# #??#########+####??? ######### | | ?????????????????##%#### #???+#????# | | ????????????????#!#! + #????????## | | ????????????????###=#### """ """ #????????#" " | | ??????????????????#=#??# """ """ #????????##! " | | ??????????????????#!#??# """ """ #?????????# " | | ??????????????????#[#??# #?????????# | | ??????????????????# #??# #?????????# | | ????????########??# #??# """ """ #?????????# " | | ????????# #??# #??# """ """ #?????????# " | | ????????# #### #### """ """ #?????????# " | | ????????# + + #?????????# | | ????????# # #### #?????????# | | ????????# # #?###+######+################# | | ????????# # #?# | | ????????# " #?# | | ????????# # ### | +----------------------------------------------------+ Best States ------------- Heat Dissipation 122 Coolant Potential 100 Energy Generation 57 Energy Capacity 630 Matter Stores 300 Matter Capacity 300 Sight Range 20 Terrain Scan Density 10 ECM Strength 2 Jamming Range 14 Additional Mass Support 12 Base Temperature (-) 200 Armor Coverage 750 Resistance: KI 20 Phase Shifting 5 Evasion (%) 61 Targeting Accuracy 8 Target Analysis 12 Recoil Reduction 9 Particle Charging 20 Offensive Hacking 10 Item Schematics ----------------- Arm. Treads | -8/Materials | Scanalyzed Hvy. Rocket Launcher | -8/Materials | Scanalyzed Hardlight Generator | -7/Factory | Scanalyzed Robot Schematics ------------------ None Fabricated ------------ Arm. Treads | x2 | -6/Factory Alien Tech Used ----------------- None Achievements -------------- Gunslinger Challenges ------------ None Game ------ Seed BehemothStorageVibroblade Manual? 0 Play Time 02:54:52 Cumulative 63.0 hours Start 2024.11.03 @ 11:10:14 End 2024.11.03 @ 14:18:22 Sessions 1 Manual Loads 0 Difficulty Rogue Special Mode None Game No. 47 Rogue 47 Adventurer 0 Explorer 0 Win Type - Total 0 Types 0/0/0/0/0/0/0/0/0 Lore% 23 Gallery% 45 Achievement% 36 Wizard Run 0 Options --------- Layout 0 ASCII 0 Keyboard 0 Movement Arrows Keybinds 0 Fullscreen 2 Font 18/X11 Map View 76x50 Zoom Use 0% Tactical HUD 1 Map Filters NONE Filters NONE Steam 0 RUN: 02811049-15a6-48f2-87df-028380e415b0